[Event "ONJK 2024 ABC"]
[Site "Velp, Netherlands"]
[Date "2024.08.08"]
[Round "9.6"]
[White "Blok, Xaveer"]
[Black "Frederiks, Jesse"]
[Result "0-1"]
[TimeControl "90 minutes + 30 seconds"]
[WhiteElo "1885"]
[BlackElo "1757"]

1. e4 {[%clk 01:30:53]} Nc6 {[%clk 01:29:57]} 2. d4 {[%clk 01:28:43]} d5 {[%clk
01:30:21]} 3. exd5 {[%clk 01:28:24]} Qxd5 {[%clk 01:30:42]} 4. Nf3 {[%clk
01:27:49]} e5 {[%clk 01:29:19]} 5. Nc3 {[%clk 01:25:23]} Bb4 {[%clk 01:29:10]}
6. Bd2 {[%clk 01:24:14]} Bxc3 {[%clk 01:29:25]} 7. Bxc3 {[%clk 01:23:53]} e4
{[%clk 01:28:50]} 8. Ne5 {[%clk 01:23:15]} Nxe5 {[%clk 01:24:56]} 9. dxe5
{[%clk 01:22:46]} Ne7 {[%clk 01:23:44]} 10. Be2 {[%clk 01:17:33]} Be6 {[%clk
01:22:04]} 11. f4 {[%clk 01:13:30]} O-O-O {[%clk 01:20:33]} 12. g3 {[%clk
01:10:25]} Qc5 {[%clk 01:18:17]} 13. Qb1 {[%clk 01:07:26]} Bh3 {[%clk
01:16:52]} 14. a3 {[%clk 00:55:37]} Nd5 {[%clk 00:52:14]} 15. Bd2 {[%clk
00:54:53]} Ne3 {[%clk 00:46:31]} 16. Bxe3 {[%clk 00:54:53]} Qxe3 {[%clk
00:46:31]} 17. Qc1 {[%clk 00:54:53]} Qc5 {[%clk 00:46:31]} 18. Bf1 {[%clk
00:54:53]} Bxf1 {[%clk 00:46:31]} 19. Rxf1 {[%clk 00:54:53]} e3 {[%clk
00:46:31]} 20. c4 {[%clk 00:54:53]} Rd7 {[%clk 00:46:31]} 21. b4 {[%clk
00:54:53]} Qd4 {[%clk 00:46:31]} 22. Ra2 {[%clk 00:54:53]} Rhd8 {[%clk
00:46:31]} 23. Ke2 {[%clk 00:54:53]} Qe4 {[%clk 00:46:31]} 24. Ke1 {[%clk
00:54:53]} Rd1+ {[%clk 00:46:31]} 25. Qxd1 {[%clk 00:54:53]} Rxd1+ {[%clk
00:46:31]} 26. Kxd1 {[%clk 00:54:53]} Qb1+ {[%clk 00:46:31]} 0-1

[Event "ONJK 2024 ABC"]
[Site "Velp, Netherlands"]
[Date "2024.08.08"]
[Round "9.7"]
[White "Madularea, David"]
[Black "Henckens, Elof"]
[Result "1-0"]
[TimeControl "90 minutes + 30 seconds"]
[WhiteElo "2190"]
[BlackElo "1707"]

1. e4 {[%clk 01:30:57]} {[%emt 00:00:02]} e5 {[%clk 01:28:28]} {[%emt
00:02:33]} 2. Nf3 {[%clk 01:30:18]} {[%emt 00:01:09]} Nf6 {[%clk 01:28:53]}
{[%emt 00:00:06]} 3. Nxe5 {[%clk 01:30:43]} {[%emt 00:00:04]} d6 {[%clk
01:29:15]} {[%emt 00:00:09]} 4. Nf3 {[%clk 01:31:10]} {[%emt 00:00:02]} Nxe4
{[%clk 01:29:36]} {[%emt 00:00:08]} 5. Nc3 {[%clk 01:31:37]} {[%emt 00:00:04]}
Nxc3 {[%clk 01:29:55]} {[%emt 00:00:12]} 6. dxc3 {[%clk 01:32:02]} {[%emt
00:00:04]} Be7 {[%clk 01:29:39]} {[%emt 00:00:46]} 7. Be3 {[%clk 01:32:28]}
{[%emt 00:00:04]} O-O {[%clk 01:29:25]} {[%emt 00:00:45]} 8. Qd2 {[%clk
01:32:54]} {[%emt 00:00:03]} Nc6 {[%clk 01:28:45]} {[%emt 00:01:10]} 9. O-O-O
{[%clk 01:33:18]} {[%emt 00:00:06]} Be6 {[%clk 01:25:04]} {[%emt 00:04:11]} 10.
Kb1 {[%clk 01:32:29]} {[%emt 00:01:18]} Qd7 {[%clk 01:22:26]} {[%emt 00:03:08]}
11. h4 {[%clk 01:31:02]} {[%emt 00:01:57]} Rfb8 {[%clk 01:20:29]} {[%emt
00:02:28]} 12. h5 {[%clk 01:26:30]} {[%emt 00:05:02]} b5 {[%clk 01:17:52]}
{[%emt 00:03:06]} 13. h6 {[%clk 01:24:11]} {[%emt 00:02:51]} g6 {[%clk
01:17:01]} {[%emt 00:01:19]} 14. Bg5 {[%clk 01:18:30]} {[%emt 00:06:11]} a5
{[%clk 01:10:07]} {[%emt 00:07:22]} 15. Bxe7 {[%clk 01:13:24]} {[%emt
00:05:38]} Qxe7 {[%clk 01:09:25]} {[%emt 00:01:13]} 16. Nd4 {[%clk 01:12:44]}
{[%emt 00:01:10]} Nxd4 {[%clk 01:03:22]} {[%emt 00:06:32]} 17. Qxd4 {[%clk
01:13:03]} {[%emt 00:00:11]} f6 {[%clk 01:02:20]} {[%emt 00:01:32]} 18. g3
{[%clk 01:11:40]} {[%emt 00:01:54]} Qf7 {[%clk 00:57:50]} {[%emt 00:05:00]} 19.
Bg2 {[%clk 01:07:57]} {[%emt 00:04:13]} Ra6 {[%clk 00:53:30]} {[%emt 00:04:49]}
20. b3 {[%clk 01:00:35]} {[%emt 00:07:55]} a4 {[%clk 00:51:48]} {[%emt
00:02:11]} 21. Rhe1 {[%clk 01:00:53]} {[%emt 00:00:12]} Kh8 {[%clk 00:40:21]}
{[%emt 00:11:58]} 22. Re2 {[%clk 00:58:41]} {[%emt 00:02:41]} axb3 {[%clk
00:36:27]} {[%emt 00:04:25]} 23. cxb3 {[%clk 00:58:26]} {[%emt 00:00:44]} c5
{[%clk 00:33:28]} {[%emt 00:03:28]} 24. Qf4 {[%clk 00:52:45]} {[%emt 00:06:11]}
g5 {[%clk 00:17:10]} {[%emt 00:16:48]} 25. Qc1 {[%clk 00:52:49]} {[%emt
00:00:26]} c4 {[%clk 00:16:12]} {[%emt 00:01:28]} 26. b4 {[%clk 00:50:57]}
{[%emt 00:02:23]} Bg4 {[%clk 00:13:17]} {[%emt 00:03:23]} 27. Bd5 {[%clk
00:46:29]} {[%emt 00:04:59]} Qg6+ {[%clk 00:11:56]} {[%emt 00:01:51]} 28. Be4
{[%clk 00:45:59]} {[%emt 00:01:00]} f5 {[%clk 00:09:57]} {[%emt 00:02:30]} 29.
f3 {[%clk 00:46:21]} {[%emt 00:00:08]} fxe4 {[%clk 00:09:51]} {[%emt 00:00:36]}
30. fxg4 {[%clk 00:46:46]} {[%emt 00:00:05]} Rd8 {[%clk 00:09:04]} {[%emt
00:01:17]} 31. Rd5 {[%clk 00:46:07]} {[%emt 00:01:08]} Rda8 {[%clk 00:04:49]}
{[%emt 00:04:45]} 32. Rxg5 {[%clk 00:44:50]} {[%emt 00:01:47]} Qe6 {[%clk
00:03:37]} {[%emt 00:01:43]} 33. Qd2 {[%clk 00:44:38]} {[%emt 00:00:42]} Rxa2
{[%clk 00:01:19]} {[%emt 00:02:47]} 34. Qd4+ {[%clk 00:44:49]} {[%emt
00:00:19]} Qe5 {[%clk 00:01:33]} {[%emt 00:00:16]} 35. Rxa2 {[%clk 00:44:56]}
{[%emt 00:00:24]} 1-0

[Event "ONJK 2024 ABC"]
[Site "Velp, Netherlands"]
[Date "2024.08.08"]
[Round "9.8"]
[White "Zhezheria, Maksym"]
[Black "Kool, Jesper"]
[Result "0-1"]
[TimeControl "90 minutes + 30 seconds"]
[WhiteElo "1626"]
[BlackElo "1823"]

1. d4 {[%clk 01:30:54]} {[%emt 00:00:06]} d5 {[%clk 01:30:58]} {[%emt
00:00:03]} 2. c4 {[%clk 01:31:18]} {[%emt 00:00:06]} e6 {[%clk 01:31:25]}
{[%emt 00:00:02]} 3. Nf3 {[%clk 01:31:39]} {[%emt 00:00:09]} c5 {[%clk
01:31:50]} {[%emt 00:00:05]} 4. cxd5 {[%clk 01:31:58]} {[%emt 00:00:11]} exd5
{[%clk 01:32:10]} {[%emt 00:00:10]} 5. Nc3 {[%clk 01:31:47]} {[%emt 00:00:42]}
Nf6 {[%clk 01:31:00]} {[%emt 00:01:40]} 6. Bg5 {[%clk 01:32:11]} {[%emt
00:00:06]} cxd4 {[%clk 01:30:15]} {[%emt 00:01:16]} 7. Bxf6 {[%clk 01:32:32]}
{[%emt 00:00:09]} gxf6 {[%clk 01:30:03]} {[%emt 00:00:43]} 8. Qxd4 {[%clk
01:32:46]} {[%emt 00:00:15]} Be6 {[%clk 01:28:44]} {[%emt 00:01:48]} 9. a3
{[%clk 01:31:00]} {[%emt 00:02:16]} Nc6 {[%clk 01:28:32]} {[%emt 00:00:42]} 10.
Qd3 {[%clk 01:29:27]} {[%emt 00:02:04]} Bc5 {[%clk 01:16:37]} {[%emt 00:12:25]}
11. Na4 {[%clk 01:25:59]} {[%emt 00:03:55]} Qa5+ {[%clk 01:16:25]} {[%emt
00:00:44]} 12. Qc3 {[%clk 01:25:43]} {[%emt 00:00:47]} Qxa4 {[%clk 01:04:53]}
{[%emt 00:12:02]} 13. Qxc5 {[%clk 01:26:02]} {[%emt 00:00:10]} Qb3 {[%clk
01:03:53]} {[%emt 00:01:30]} 14. Qc3 {[%clk 01:25:17]} {[%emt 00:01:14]} Qxc3+
{[%clk 01:03:25]} {[%emt 00:01:00]} 15. bxc3 {[%clk 01:25:36]} {[%emt
00:00:10]} Rc8 {[%clk 01:03:24]} {[%emt 00:00:31]} 16. Rc1 {[%clk 01:22:58]}
{[%emt 00:03:08]} Na5 {[%clk 01:02:36]} {[%emt 00:01:18]} 17. Nd4 {[%clk
01:22:00]} {[%emt 00:01:29]} Nc4 {[%clk 01:01:29]} {[%emt 00:01:37]} 18. e3
{[%clk 01:19:31]} {[%emt 00:02:58]} Ke7 {[%clk 00:58:55]} {[%emt 00:03:04]} 19.
Bxc4 {[%clk 01:18:26]} {[%emt 00:01:35]} Rxc4 {[%clk 00:58:09]} {[%emt
00:01:16]} 20. Kd2 {[%clk 01:16:03]} {[%emt 00:02:54]} Rhc8 {[%clk 00:56:05]}
{[%emt 00:02:34]} 21. Rb1 {[%clk 01:16:10]} {[%emt 00:00:23]} b6 {[%clk
00:52:08]} {[%emt 00:04:26]} 22. Rhc1 {[%clk 01:14:40]} {[%emt 00:02:00]} Bd7
{[%clk 00:49:49]} {[%emt 00:02:48]} 23. Rb4 {[%clk 01:11:19]} {[%emt 00:03:51]}
R4c5 {[%clk 00:42:10]} {[%emt 00:08:09]} 24. g3 {[%clk 01:10:26]} {[%emt
00:01:24]} Ra5 {[%clk 00:39:59]} {[%emt 00:02:40]} 25. Rb3 {[%clk 01:10:25]}
{[%emt 00:00:31]} Ba4 {[%clk 00:39:37]} {[%emt 00:00:52]} 26. Rb4 {[%clk
01:03:27]} {[%emt 00:07:28]} Bd7 {[%clk 00:39:48]} {[%emt 00:00:19]} 27. Ra1
{[%clk 00:58:49]} {[%emt 00:05:08]} Rac5 {[%clk 00:39:31]} {[%emt 00:00:47]} 28.
Ne2 {[%clk 00:57:46]} {[%emt 00:01:33]} Kd6 {[%clk 00:33:58]} {[%emt 00:06:03]}
29. Rh4 {[%clk 00:52:51]} {[%emt 00:05:25]} Bf5 {[%clk 00:31:39]} {[%emt
00:02:42]} 30. Rf4 {[%clk 00:51:14]} {[%emt 00:02:15]} Ke5 {[%clk 00:30:17]}
{[%emt 00:01:51]} 31. a4 {[%clk 00:29:22]} {[%emt 00:22:21]} Rc4 {[%clk
00:24:17]} {[%emt 00:06:31]} 32. Rxc4 {[%clk 00:26:36]} {[%emt 00:03:16]} Rxc4
{[%clk 00:23:02]} {[%emt 00:01:44]} 33. Nd4 {[%clk 00:24:50]} {[%emt 00:02:16]}
Bd7 {[%clk 00:23:00]} {[%emt 00:00:32]} 34. a5 {[%clk 00:23:54]} {[%emt
00:01:27]} b5 {[%clk 00:22:22]} {[%emt 00:01:07]} 35. a6 {[%clk 00:20:18]}
{[%emt 00:04:05]} Kd6 {[%clk 00:19:58]} {[%emt 00:02:54]} 36. Nc2 {[%clk
00:07:51]} {[%emt 00:12:57]} Rc6 {[%clk 00:14:18]} {[%emt 00:06:09]} 37. Nb4
{[%clk 00:07:58]} {[%emt 00:00:24]} Rb6 {[%clk 00:14:35]} {[%emt 00:00:14]} 38.
Ke2 {[%clk 00:05:46]} {[%emt 00:02:42]} Kc5 {[%clk 00:14:13]} {[%emt 00:00:47]}
39. Rd1 {[%clk 00:05:50]} {[%emt 00:00:30]} Rd6 {[%clk 00:14:26]} {[%emt
00:00:17]} 40. Rd4 {[%clk 00:05:52]} {[%emt 00:00:27]} h6 {[%clk 00:12:38]}
{[%emt 00:02:19]} 41. Kf3 {[%clk 00:06:02]} {[%emt 00:00:20]} Bc8 {[%clk
00:12:26]} {[%emt 00:00:42]} 42. Rh4 {[%clk 00:05:57]} {[%emt 00:00:36]} Bxa6
{[%clk 00:12:04]} {[%emt 00:00:51]} 43. Rxh6 {[%clk 00:06:03]} {[%emt
00:00:23]} Bb7 {[%clk 00:12:18]} {[%emt 00:00:17]} 44. Nd3+ {[%clk 00:04:20]}
{[%emt 00:02:13]} Kc4 {[%clk 00:12:24]} {[%emt 00:00:24]} 45. Ne5+ {[%clk
00:04:40]} {[%emt 00:00:10]} Kxc3 {[%clk 00:11:09]} {[%emt 00:01:45]} 46. Ke2
{[%clk 00:04:22]} {[%emt 00:00:48]} b4 {[%clk 00:10:07]} {[%emt 00:01:32]} 47.
Nxf7 {[%clk 00:03:47]} {[%emt 00:01:05]} Ra6 {[%clk 00:08:20]} {[%emt
00:02:18]} 48. Nd8 {[%clk 00:02:18]} {[%emt 00:01:58]} Ra2+ {[%clk 00:07:50]}
{[%emt 00:00:59]} 49. Kf3 {[%clk 00:02:23]} {[%emt 00:00:26]} b3 {[%clk
00:07:56]} {[%emt 00:00:25]} 50. Nxb7 {[%clk 00:01:08]} {[%emt 00:01:44]} b2
{[%clk 00:08:16]} {[%emt 00:00:11]} 51. Rxf6 {[%clk 00:01:08]} {[%emt
00:00:30]} b1=Q {[%emt 00:00:15]} 52. Rc6+ {[%clk 00:01:14]} {[%emt 00:00:23]}
Kb4 {[%clk 00:08:45]} {[%emt 00:00:18]} 53. Nd6 {[%clk 00:01:12]} {[%emt
00:00:31]} Qd1+ {[%clk 00:08:32]} {[%emt 00:00:36]} 54. Kg2 {[%clk 00:01:05]}
{[%emt 00:00:43]} Qe2 {[%clk 00:08:17]} {[%emt 00:00:45]} 55. Ne4 {[%clk
00:01:01]} {[%emt 00:00:35]} dxe4 {[%clk 00:08:24]} {[%emt 00:00:23]} 56. Rf6
{[%clk 00:01:22]} {[%emt 00:00:09]} Ra1 {[%clk 00:08:09]} {[%emt 00:00:46]} 57.
Kh3 {[%clk 00:01:38]} {[%emt 00:00:12]} Rh1 {[%clk 00:08:17]} {[%emt 00:01:18]}
0-1

[Event "ONJK 2024 ABC"]
[Site "Velp, Netherlands"]
[Date "2024.08.08"]
[Round "9.9"]
[White "Helderman, Faas"]
[Black "Sapulette, Jay-Giani"]
[Result "0-1"]
[TimeControl "90 minutes + 30 seconds"]
[WhiteElo "1603"]
[BlackElo "1746"]

1. d4 {[%clk 01:30:58]} Nf6 {[%clk 01:30:56]} {[%emt 00:00:05]} 2. Bf4 {[%clk
01:31:18]} {[%emt 00:00:09]} g6 {[%clk 01:31:23]} {[%emt 00:00:05]} 3. Nc3
{[%clk 01:31:39]} {[%emt 00:00:08]} d5 {[%clk 01:31:49]} {[%emt 00:00:04]} 4.
e3 {[%clk 01:31:49]} {[%emt 00:00:19]} Bg7 {[%clk 01:32:15]} {[%emt 00:00:06]}
5. Nf3 {[%clk 01:32:01]} {[%emt 00:00:17]} O-O {[%clk 01:31:52]} {[%emt
00:00:53]} 6. Be2 {[%clk 01:31:41]} {[%emt 00:00:50]} c6 {[%clk 01:31:33]}
{[%emt 00:00:49]} 7. h4 {[%clk 01:30:15]} {[%emt 00:01:55]} h5 {[%clk
01:30:34]} {[%emt 00:01:29]} 8. Ne5 {[%clk 01:29:28]} {[%emt 00:01:17]} Nbd7
{[%clk 01:29:06]} {[%emt 00:01:59]} 9. f3 {[%clk 01:26:50]} {[%emt 00:03:03]}
Qb6 {[%clk 01:09:40]} {[%emt 00:20:00]} 10. Rb1 {[%clk 01:23:57]} {[%emt
00:03:23]} Nxe5 {[%clk 01:07:06]} {[%emt 00:03:05]} 11. Bxe5 {[%clk 01:22:49]}
{[%emt 00:01:38]} Bh6 {[%clk 01:06:28]} {[%emt 00:01:08]} 12. Bf4 {[%clk
01:18:27]} {[%emt 00:04:52]} Bxf4 {[%clk 01:04:38]} {[%emt 00:02:21]} 13. exf4
{[%clk 01:18:02]} {[%emt 00:00:54]} Qc7 {[%clk 01:00:45]} {[%emt 00:04:23]} 14.
g3 {[%clk 01:15:12]} {[%emt 00:03:17]} b5 {[%clk 00:59:12]} {[%emt 00:02:07]}
15. Bd3 {[%clk 01:12:39]} {[%emt 00:03:01]} a5 {[%clk 00:58:26]} {[%emt
00:01:17]} 16. Qe2 {[%clk 01:09:04]} {[%emt 00:04:04]} Rd8 {[%clk 00:51:48]}
{[%emt 00:07:09]} 17. O-O {[%clk 01:06:10]} {[%emt 00:03:21]} Qa7 {[%clk
00:50:32]} {[%emt 00:01:48]} 18. Qf2 {[%clk 01:05:17]} {[%emt 00:01:21]} Ba6
{[%clk 00:41:57]} {[%emt 00:09:07]} 19. Rfe1 {[%clk 01:02:34]} {[%emt
00:03:13]} Rab8 {[%clk 00:39:28]} {[%emt 00:03:00]} 20. Rbd1 {[%clk 00:56:57]}
{[%emt 00:06:04]} e6 {[%clk 00:33:38]} {[%emt 00:06:21]} 21. Qe3 {[%clk
00:55:10]} {[%emt 00:02:16]} c5 {[%clk 00:29:48]} {[%emt 00:04:22]} 22. dxc5
{[%clk 00:51:25]} {[%emt 00:04:15]} d4 {[%clk 00:29:49]} {[%emt 00:00:30]} 23.
Qe5 {[%clk 00:48:46]} {[%emt 00:03:07]} dxc3 {[%clk 00:29:00]} {[%emt
00:01:21]} 24. Qxf6 {[%clk 00:48:08]} {[%emt 00:01:06]} Qxc5+ {[%clk 00:28:37]}
{[%emt 00:00:55]} 25. Kg2 {[%clk 00:48:25]} {[%emt 00:00:12]} Qd4 {[%clk
00:24:47]} {[%emt 00:04:20]} 26. Qxd4 {[%clk 00:45:27]} {[%emt 00:03:27]} Rxd4
{[%clk 00:24:49]} {[%emt 00:00:30]} 27. bxc3 {[%clk 00:45:35]} {[%emt
00:00:21]} Ra4 {[%clk 00:25:08]} {[%emt 00:00:11]} 28. Rb1 {[%clk 00:44:05]}
{[%emt 00:01:59]} Rc8 {[%clk 00:24:20]} {[%emt 00:01:20]} 29. Bxb5 {[%clk
00:43:35]} {[%emt 00:00:59]} Bxb5 {[%clk 00:24:43]} {[%emt 00:00:07]} 30. Rxb5
{[%clk 00:43:58]} {[%emt 00:00:07]} Rxc3 {[%clk 00:25:06]} {[%emt 00:00:07]} 31.
Ree5 {[%clk 00:42:40]} {[%emt 00:01:45]} Rxc2+ {[%clk 00:25:04]} {[%emt
00:00:36]} 32. Kh3 {[%clk 00:42:58]} {[%emt 00:00:11]} Raxa2 {[%clk 00:25:29]}
{[%emt 00:00:05]} 0-1

[Event "ONJK 2024 ABC"]
[Site "Velp, Netherlands"]
[Date "2024.08.08"]
[Round "9.10"]
[White "Musabayev, Maxim"]
[Black "Vertongen, Jack"]
[Result "1-0"]
[TimeControl "90 minutes + 30 seconds"]
[WhiteElo "1824"]
[BlackElo "1674"]

1. e4 {[%clk 01:30:58]} {[%emt 00:00:02]} e5 {[%clk 01:30:49]} {[%emt
00:00:12]} 2. f4 {[%clk 01:31:18]} {[%emt 00:00:10]} d6 {[%clk 01:31:10]}
{[%emt 00:00:09]} 3. Nf3 {[%clk 01:31:44]} {[%emt 00:00:04]} Nc6 {[%clk
01:31:18]} {[%emt 00:00:22]} 4. Bb5 {[%clk 01:31:42]} {[%emt 00:00:31]} Bg4
{[%clk 01:31:22]} {[%emt 00:00:26]} 5. h3 {[%clk 01:31:44]} {[%emt 00:00:28]}
Bxf3 {[%clk 01:30:42]} {[%emt 00:01:11]} 6. Qxf3 {[%clk 01:32:08]} {[%emt
00:00:06]} Nge7 {[%clk 01:29:35]} {[%emt 00:01:37]} 7. O-O {[%clk 01:32:22]}
{[%emt 00:00:15]} a6 {[%clk 01:27:32]} {[%emt 00:02:34]} 8. Bc4 {[%clk
01:30:28]} {[%emt 00:02:23]} Nd4 {[%clk 01:22:59]} {[%emt 00:05:02]} 9. Qd1
{[%clk 01:29:47]} {[%emt 00:01:13]} b5 {[%clk 01:19:13]} {[%emt 00:04:16]} 10.
Bb3 {[%clk 01:29:45]} {[%emt 00:00:32]} Nxb3 {[%clk 01:19:40]} {[%emt
00:00:03]} 11. axb3 {[%clk 01:30:10]} {[%emt 00:00:05]} Nc6 {[%clk 01:19:45]}
{[%emt 00:00:23]} 12. d3 {[%clk 01:29:40]} {[%emt 00:01:02]} Be7 {[%clk
01:18:49]} {[%emt 00:01:26]} 13. f5 {[%clk 01:30:05]} {[%emt 00:00:05]} O-O
{[%emt 00:02:27]} 14. Nc3 {[%clk 01:29:50]} {[%emt 00:00:44]} Nd4 {[%clk
01:14:27]} {[%emt 00:02:56]} 15. Be3 {[%clk 01:29:39]} {[%emt 00:00:40]} Bf6
{[%clk 01:08:50]} {[%emt 00:06:07]} 16. Nd5 {[%clk 01:29:31]} {[%emt 00:00:37]}
c6 {[%clk 01:08:51]} {[%emt 00:00:30]} 17. Nxf6+ {[%clk 01:29:45]} {[%emt
00:00:16]} Qxf6 {[%clk 01:09:20]} {[%emt 00:00:02]} 18. c3 {[%clk 01:30:04]}
{[%emt 00:00:11]} c5 {[%clk 01:08:43]} {[%emt 00:01:07]} 19. cxd4 {[%clk
01:30:28]} {[%emt 00:00:06]} cxd4 {[%clk 01:09:02]} {[%emt 00:00:11]} 20. Bd2
{[%clk 01:30:44]} {[%emt 00:00:14]} Rfc8 {[%clk 01:08:44]} {[%emt 00:00:48]} 21.
Qg4 {[%clk 01:30:28]} {[%emt 00:00:46]} Rc2 {[%clk 01:08:28]} {[%emt 00:00:45]}
22. Bg5 {[%clk 01:30:43]} {[%emt 00:00:16]} 1-0

[Event "ONJK 2024 ABC"]
[Site "Velp, Netherlands"]
[Date "2024.08.08"]
[Round "9.11"]
[White "Van Groning, Christian"]
[Black "Vagenende, Lars"]
[Result "1/2-1/2"]
[TimeControl "90 minutes + 30 seconds"]
[WhiteElo "1778"]
[BlackElo "1686"]

1. e4 {[%clk 01:30:58]} {[%emt 00:00:01]} e5 {[%clk 01:30:53]} {[%emt
00:00:07]} 2. Nf3 {[%clk 01:31:24]} {[%emt 00:00:04]} Nc6 {[%clk 01:31:16]}
{[%emt 00:00:07]} 3. Bb5 {[%clk 01:31:49]} {[%emt 00:00:05]} a6 {[%clk
01:31:28]} {[%emt 00:00:19]} 4. Ba4 {[%clk 01:32:12]} {[%emt 00:00:07]} Nf6
{[%clk 01:31:42]} {[%emt 00:00:15]} 5. Nc3 {[%clk 01:32:31]} {[%emt 00:00:12]}
Bc5 {[%clk 01:31:38]} {[%emt 00:00:33]} 6. d3 {[%clk 01:32:55]} {[%emt
00:00:06]} h6 {[%clk 01:30:19]} {[%emt 00:01:50]} 7. Be3 {[%clk 01:32:54]}
{[%emt 00:00:30]} Bxe3 {[%clk 01:29:46]} {[%emt 00:01:03]} 8. fxe3 {[%clk
01:33:15]} {[%emt 00:00:09]} b5 {[%clk 01:29:17]} {[%emt 00:01:00]} 9. Bb3
{[%clk 01:33:36]} {[%emt 00:00:09]} Bb7 {[%clk 01:28:51]} {[%emt 00:00:56]} 10.
Qe2 {[%clk 01:33:28]} {[%emt 00:00:36]} d6 {[%clk 01:28:02]} {[%emt 00:01:20]}
11. d4 {[%clk 01:33:32]} {[%emt 00:00:27]} O-O {[%clk 01:26:49]} {[%emt
00:01:41]} 12. O-O-O {[%clk 01:33:21]} {[%emt 00:00:42]} Qe7 {[%clk 01:25:47]}
{[%emt 00:01:32]} 13. Nd5 {[%clk 01:33:10]} {[%emt 00:00:41]} Nxd5 {[%clk
01:25:35]} {[%emt 00:00:42]} 14. exd5 {[%clk 01:33:32]} {[%emt 00:00:07]} Na5
{[%clk 01:24:56]} {[%emt 00:01:10]} 15. dxe5 {[%clk 01:33:03]} {[%emt
00:01:00]} Nxb3+ {[%clk 01:24:14]} {[%emt 00:01:12]} 16. cxb3 {[%clk 01:33:13]}
{[%emt 00:00:19]} dxe5 {[%clk 01:23:34]} {[%emt 00:01:10]} 17. e4 {[%clk
01:33:06]} {[%emt 00:00:38]} f5 {[%clk 01:21:11]} {[%emt 00:02:53]} 18. Rhg1
{[%clk 01:31:32]} {[%emt 00:02:01]} Rae8 {[%clk 01:14:33]} {[%emt 00:07:11]} 19.
exf5 {[%clk 01:30:38]} {[%emt 00:01:23]} e4 {[%clk 01:09:29]} {[%emt 00:05:34]}
20. Nd4 {[%clk 01:28:30]} {[%emt 00:02:38]} Bxd5 {[%clk 01:08:06]} {[%emt
00:01:53]} 21. g4 {[%clk 01:27:01]} {[%emt 00:01:59]} Qg5+ {[%clk 01:03:52]}
{[%emt 00:04:44]} 22. Kb1 {[%clk 01:27:04]} {[%emt 00:00:27]} e3 {[%clk
00:57:39]} {[%emt 00:06:44]} 23. Rg3 {[%clk 01:26:17]} {[%emt 00:01:15]} Qf4
{[%clk 00:56:07]} {[%emt 00:02:04]} 24. Nc2 {[%clk 01:25:13]} {[%emt 00:01:33]}
Be4 {[%clk 00:54:25]} {[%emt 00:02:12]} 25. Re1 {[%clk 01:23:46]} {[%emt
00:01:56]} Re5 {[%clk 00:38:31]} {[%emt 00:16:26]} 26. Rxe3 {[%clk 01:20:12]}
{[%emt 00:04:03]} Bxc2+ {[%clk 00:38:22]} {[%emt 00:00:38]} 27. Kxc2 {[%clk
01:20:13]} {[%emt 00:00:31]} Rxe3 {[%clk 00:37:50]} {[%emt 00:01:01]} 28. Qxe3
{[%clk 01:20:23]} {[%emt 00:00:20]} Qxg4 {[%clk 00:37:37]} {[%emt 00:00:44]} 29.
Qe6+ {[%clk 01:18:44]} {[%emt 00:02:08]} Kh8 {[%clk 00:37:01]} {[%emt
00:01:06]} 30. Re5 {[%clk 01:18:20]} {[%emt 00:00:54]} 1/2-1/2